[Event "*** Titled Tuesday 3|2 Blitz"]
[Site "Chess.com"]
[Date "2016.05.03"]
[Round "4"]
[White "jk13"]
[Black "sandropozo"]
[Result "1-0"]
[WhiteElo "2411"]
[BlackElo "2279"]
[TimeControl "180+2"]
[EndTime "11:49:36 PDT"]
[Termination "jk13 won by resignation"]

1. e4 {[%clk 0:03:01.9]} 1... e6 {[%clk 0:03:00.4]} 2. d4 {[%clk 0:03:02.3]}
2... d5 {[%clk 0:03:01.3]} 3. Nd2 {[%clk 0:03:03.4]} 3... Ne7 {[%clk 0:03:00.6]}
4. Ngf3 {[%clk 0:03:02.2]} 4... Ng6 {[%clk 0:03:01.4]} 5. c3 {[%clk 0:03:02]}
5... c5 {[%clk 0:03:00.8]} 6. exd5 {[%clk 0:03:02.2]} 6... exd5 {[%clk
0:03:01.3]} 7. Bb5+ {[%clk 0:03:02.8]} 7... Nc6 {[%clk 0:03:02.2]} 8. dxc5
{[%clk 0:03:03]} 8... Bxc5 {[%clk 0:03:02.4]} 9. O-O {[%clk 0:03:04.3]} 9... O-O
{[%clk 0:03:03.5]} 10. Nb3 {[%clk 0:03:05.9]} 10... Bb6 {[%clk 0:03:04.1]} 11.
Re1 {[%clk 0:03:06.3]} 11... h6 {[%clk 0:02:47.1]} 12. Be3 {[%clk 0:03:05.9]}
12... Be6 {[%clk 0:02:25]} 13. Bxb6 {[%clk 0:03:03.2]} 13... Qxb6 {[%clk
0:02:24]} 14. Bd3 {[%clk 0:02:50.4]} 14... Nf4 {[%clk 0:02:21.1]} 15. Qd2 {[%clk
0:02:45.1]} 15... Nxd3 {[%clk 0:02:17.9]} 16. Qxd3 {[%clk 0:02:47]} 16... a5
{[%clk 0:02:14.8]} 17. Rab1 {[%clk 0:02:40.6]} 17... Rfe8 {[%clk 0:02:11.4]} 18.
Nbd4 {[%clk 0:02:39.9]} 18... Bd7 {[%clk 0:01:52.8]} 19. Qb5 {[%clk 0:02:28.9]}
19... Qxb5 {[%clk 0:01:44.9]} 20. Nxb5 {[%clk 0:02:30.8]} 20... Bf5 {[%clk
0:01:31.2]} 21. Rbd1 {[%clk 0:02:16.5]} 21... Be4 {[%clk 0:01:26.6]} 22. Nfd4
{[%clk 0:01:53.5]} 22... Nxd4 {[%clk 0:01:13.9]} 23. Nxd4 {[%clk 0:01:42.8]}
23... a4 {[%clk 0:01:07.2]} 24. a3 {[%clk 0:01:43.7]} 24... Bd3 {[%clk
0:01:02.6]} 25. f3 {[%clk 0:01:40.4]} 25... Bc4 {[%clk 0:01:03]} 26. Kf2 {[%clk
0:01:40.1]} 26... g6 {[%clk 0:01:02.7]} 27. g4 {[%clk 0:01:36.1]} 27... Kg7
{[%clk 0:01:01.5]} 28. h4 {[%clk 0:01:37]} 28... Kf6 {[%clk 0:01:02.3]} 29. Kg3
{[%clk 0:01:32.2]} 29... Rad8 {[%clk 0:00:58.6]} 30. Kf4 {[%clk 0:01:33.1]}
30... g5+ {[%clk 0:00:58.4]} 31. Kg3 {[%clk 0:01:34.3]} 31... Rh8 {[%clk
0:00:52.4]} 32. h5 {[%clk 0:01:31]} 32... Rde8 {[%clk 0:00:49.8]} 33. Nf5 {[%clk
0:01:22.9]} 33... Re6 {[%clk 0:00:50.7]} 34. Kf2 {[%clk 0:01:10.7]} 34... Rxe1
{[%clk 0:00:47.5]} 35. Rxe1 {[%clk 0:01:10.7]} 35... Bd3 {[%clk 0:00:48.6]} 36.
Nd4 {[%clk 0:01:10.4]} 36... Rc8 {[%clk 0:00:47.9]} 37. Re3 {[%clk 0:01:07.4]}
37... Bh7 {[%clk 0:00:48]} 38. Kg3 {[%clk 0:01:08.9]} 38... Rd8 {[%clk
0:00:48.3]} 39. f4 {[%clk 0:01:09.9]} 39... gxf4+ {[%clk 0:00:44.1]} 40. Kxf4
{[%clk 0:01:11.8]} 40... Be4 {[%clk 0:00:43.5]} 41. c4 {[%clk 0:01:06.7]} 41...
Rc8 {[%clk 0:00:40.6]} 42. Rc3 {[%clk 0:01:02.9]} 42... b6 {[%clk 0:00:35.2]}
43. cxd5 {[%clk 0:01:02.4]} 43... Rxc3 {[%clk 0:00:34.3]} 44. bxc3 {[%clk
0:01:04.3]} 44... Bxd5 {[%clk 0:00:35.5]} 45. Nf5 {[%clk 0:01:05.2]} 45... Bb3
{[%clk 0:00:31.6]} 46. Nxh6 {[%clk 0:01:05.2]} 46... Ke6 {[%clk 0:00:32.8]} 47.
Nf5 {[%clk 0:01:05.6]} 47... Kf6 {[%clk 0:00:32.4]} 48. g5+ {[%clk 0:01:05.8]}
48... Ke6 {[%clk 0:00:32.8]} 49. h6 {[%clk 0:01:06.4]} 1-0

[Event "*** Titled Tuesday 3|2 Blitz"]
[Site "Chess.com"]
[Date "2016.05.03"]
[Round "4"]
[White "Saitama_Hero"]
[Black "CraiggoryC"]
[Result "0-1"]
[WhiteElo "2150"]
[BlackElo "2098"]
[TimeControl "180+2"]
[EndTime "11:49:40 PDT"]
[Termination "CraiggoryC won on time"]

1. d4 {[%clk 0:03:01.9]} 1... e6 {[%clk 0:03:00.3]} 2. c4 {[%clk 0:03:03]} 2...
Nf6 {[%clk 0:03:00.8]} 3. Nc3 {[%clk 0:03:02.4]} 3... d5 {[%clk 0:03:00.7]} 4.
Nf3 {[%clk 0:03:01.7]} 4... c6 {[%clk 0:03:01.4]} 5. Bg5 {[%clk 0:03:02.3]} 5...
dxc4 {[%clk 0:02:59.2]} 6. e4 {[%clk 0:03:02.8]} 6... b5 {[%clk 0:03:00.1]} 7.
e5 {[%clk 0:03:03.7]} 7... h6 {[%clk 0:03:01.1]} 8. Bh4 {[%clk 0:03:05.1]} 8...
g5 {[%clk 0:03:02.5]} 9. Nxg5 {[%clk 0:03:06.7]} 9... hxg5 {[%clk 0:03:03.6]}
10. Bxg5 {[%clk 0:03:08.4]} 10... Nbd7 {[%clk 0:03:05]} 11. exf6 {[%clk
0:03:10]} 11... Bb7 {[%clk 0:03:05.3]} 12. g3 {[%clk 0:03:11.6]} 12... c5 {[%clk
0:03:03.8]} 13. d5 {[%clk 0:03:13.2]} 13... Qb6 {[%clk 0:03:04.6]} 14. Bg2
{[%clk 0:03:11.9]} 14... O-O-O {[%clk 0:03:04]} 15. O-O {[%clk 0:03:11.2]} 15...
b4 {[%clk 0:03:05.1]} 16. Na4 {[%clk 0:03:11.7]} 16... Qb5 {[%clk 0:03:03.7]}
17. a3 {[%clk 0:03:13.3]} 17... exd5 {[%clk 0:03:02.9]} 18. axb4 {[%clk
0:03:13.7]} 18... d4 {[%clk 0:02:57.9]} 19. Nc3 {[%clk 0:02:13.3]} 19... dxc3
{[%clk 0:02:32.6]} 20. Rxa7 {[%clk 0:02:13.9]} 20... Bxg2 {[%clk 0:02:21.3]} 21.
Bf4 {[%clk 0:02:15]} 21... Ne5 {[%clk 0:02:09.7]} 22. Bxe5 {[%clk 0:01:52.4]}
22... Bb7 {[%clk 0:01:34.5]} 23. Qg4+ {[%clk 0:01:02.3]} 23... Qd7 {[%clk
0:01:27.1]} 24. Qxc4 {[%clk 0:00:33.5]} 24... Qd5 {[%clk 0:00:32.1]} 25. Rxb7
{[%clk 0:00:14.2]} 25... Qxb7 {[%clk 0:00:21.1]} 26. Ra1 {[%clk 0:00:14.7]}
26... Bd6 {[%clk 0:00:16]} 27. bxc5 {[%clk 0:00:09.1]} 27... Bxe5 {[%clk
0:00:15.4]} 28. c6 {[%clk 0:00:10.7]} 28... Qxb2 {[%clk 0:00:15]} 29. Ra8+
{[%clk 0:00:07.4]} 29... Bb8 {[%clk 0:00:13.4]} 30. Qa6+ {[%clk 0:00:03.9]}
30... Kc7 {[%clk 0:00:13.6]} 31. Qa5+ {[%clk 0:00:04.7]} 31... Qb6 {[%clk
0:00:13.6]} 32. Qe5+ {[%clk 0:00:04.4]} 32... Kxc6 {[%clk 0:00:14.8]} 0-1

[Event "*** Titled Tuesday 3|2 Blitz"]
[Site "Chess.com"]
[Date "2016.05.03"]
[Round "4"]
[White "GulamaliRises"]
[Black "Spas_Kozhuharov"]
[Result "0-1"]
[WhiteElo "2578"]
[BlackElo "2487"]
[TimeControl "180+2"]
[EndTime "11:49:43 PDT"]
[Termination "Spas_Kozhuharov won by resignation"]

1. e4 {[%clk 0:03:01.9]} 1... c6 {[%clk 0:03:00.4]} 2. d4 {[%clk 0:03:00.8]}
2... d5 {[%clk 0:03:01.7]} 3. f3 {[%clk 0:03:02.2]} 3... dxe4 {[%clk 0:03:01.8]}
4. fxe4 {[%clk 0:03:04.1]} 4... e5 {[%clk 0:03:03.5]} 5. Nf3 {[%clk 0:03:04.8]}
5... Bg4 {[%clk 0:03:03.4]} 6. Bc4 {[%clk 0:03:03.5]} 6... Nd7 {[%clk
0:03:02.7]} 7. O-O {[%clk 0:03:04.3]} 7... Ngf6 {[%clk 0:03:02.7]} 8. c3 {[%clk
0:03:05.6]} 8... b5 {[%clk 0:02:49.2]} 9. Bd3 {[%clk 0:03:05.4]} 9... Bd6 {[%clk
0:02:47.2]} 10. Bg5 {[%clk 0:03:06.1]} 10... O-O {[%clk 0:02:45]} 11. Nbd2
{[%clk 0:03:07.2]} 11... Qc7 {[%clk 0:02:41.3]} 12. Qe1 {[%clk 0:03:07.6]} 12...
h6 {[%clk 0:02:39.9]} 13. Be3 {[%clk 0:03:03.1]} 13... Bh5 {[%clk 0:02:32.7]}
14. Qh4 {[%clk 0:03:03.4]} 14... Bg6 {[%clk 0:02:31.4]} 15. Rae1 {[%clk
0:02:58.6]} 15... Rae8 {[%clk 0:02:23.9]} 16. Kh1 {[%clk 0:02:08.4]} 16... a6
{[%clk 0:02:22.5]} 17. Qh3 {[%clk 0:01:29.4]} 17... c5 {[%clk 0:02:21]} 18. d5
{[%clk 0:01:17.2]} 18... c4 {[%clk 0:02:21.9]} 19. Bb1 {[%clk 0:01:18.1]} 19...
Bc5 {[%clk 0:02:23.4]} 20. Nh4 {[%clk 0:01:17.1]} 20... Bxe3 {[%clk 0:02:23.5]}
21. Rxe3 {[%clk 0:01:17.3]} 21... Bh7 {[%clk 0:02:22.7]} 22. Nf5 {[%clk
0:01:18.4]} 22... Bxf5 {[%clk 0:02:23.2]} 23. Qxf5 {[%clk 0:01:20.3]} 23... g6
{[%clk 0:02:14.1]} 24. Qh3 {[%clk 0:01:19.4]} 24... Kg7 {[%clk 0:02:14.4]} 25.
Ref3 {[%clk 0:01:16.4]} 25... h5 {[%clk 0:02:07.6]} 26. Qh4 {[%clk 0:01:15.3]}
26... Qd8 {[%clk 0:01:57.8]} 27. h3 {[%clk 0:01:09.6]} 27... Nh7 {[%clk
0:01:52.3]} 28. Qe1 {[%clk 0:01:06.2]} 28... h4 {[%clk 0:01:49.8]} 29. b3 {[%clk
0:00:57.1]} 29... cxb3 {[%clk 0:01:28.7]} 30. axb3 {[%clk 0:00:59]} 30... Qg5
{[%clk 0:01:01.1]} 31. b4 {[%clk 0:00:53.3]} 31... Nhf6 {[%clk 0:00:57.4]} 32.
Qf2 {[%clk 0:00:52.1]} 32... Re7 {[%clk 0:00:45.1]} 33. c4 {[%clk 0:00:51.7]}
33... bxc4 {[%clk 0:00:41]} 34. Nxc4 {[%clk 0:00:53.6]} 34... Nh5 {[%clk
0:00:42.1]} 35. d6 {[%clk 0:00:52.2]} 35... Ng3+ {[%clk 0:00:42.8]} 36. Kg1
{[%clk 0:00:53.3]} 36... Ree8 {[%clk 0:00:35.2]} 37. Rxf7+ {[%clk 0:00:51]}
37... Kh6 {[%clk 0:00:36.4]} 38. Re1 {[%clk 0:00:45.1]} 38... Rxf7 {[%clk
0:00:26.1]} 39. Qxf7 {[%clk 0:00:45.9]} 39... Rf8 {[%clk 0:00:27.6]} 40. Qxd7
{[%clk 0:00:40.4]} 40... Qf4 {[%clk 0:00:28.6]} 41. Qa7 {[%clk 0:00:39.1]} 41...
Qf1+ {[%clk 0:00:28.7]} 42. Kh2 {[%clk 0:00:38.5]} 42... Qxe1 {[%clk 0:00:29]}
43. Qe3+ {[%clk 0:00:40.2]} 43... Qxe3 {[%clk 0:00:29.4]} 44. Nxe3 {[%clk
0:00:42.1]} 44... Nf1+ {[%clk 0:00:27.6]} 45. Nxf1 {[%clk 0:00:43]} 45... Rxf1
{[%clk 0:00:29.5]} 46. Ba2 {[%clk 0:00:44.8]} 46... Rf6 {[%clk 0:00:27.8]} 0-1

[Event "*** Titled Tuesday 3|2 Blitz"]
[Site "Chess.com"]
[Date "2016.05.03"]
[Round "4"]
[White "stuffings101"]
[Black "Grootneus"]
[Result "1-0"]
[WhiteElo "2114"]
[BlackElo "2043"]
[TimeControl "180+2"]
[EndTime "11:49:50 PDT"]
[Termination "stuffings101 won by resignation"]

1. Nf3 {[%clk 0:03:01.9]} 1... Nf6 {[%clk 0:02:56.8]} 2. g3 {[%clk 0:02:59.8]}
2... b6 {[%clk 0:02:55.3]} 3. Bg2 {[%clk 0:03:01.7]} 3... Bb7 {[%clk 0:02:54.7]}
4. O-O {[%clk 0:03:03.6]} 4... c5 {[%clk 0:02:55.7]} 5. d3 {[%clk 0:03:04.6]}
5... e6 {[%clk 0:02:56.4]} 6. c3 {[%clk 0:03:05.8]} 6... Be7 {[%clk 0:02:57.6]}
7. e4 {[%clk 0:03:05.4]} 7... O-O {[%clk 0:02:59.1]} 8. Re1 {[%clk 0:03:06.9]}
8... d6 {[%clk 0:02:59.9]} 9. Nbd2 {[%clk 0:03:08.5]} 9... Nbd7 {[%clk
0:03:00.7]} 10. a3 {[%clk 0:03:10]} 10... Qc7 {[%clk 0:02:53.5]} 11. b3 {[%clk
0:03:09.9]} 11... Rac8 {[%clk 0:02:53.2]} 12. Bb2 {[%clk 0:03:11.3]} 12... b5
{[%clk 0:02:53.8]} 13. Qe2 {[%clk 0:03:11.3]} 13... a5 {[%clk 0:02:54.1]} 14. a4
{[%clk 0:03:11.6]} 14... b4 {[%clk 0:02:47.8]} 15. c4 {[%clk 0:03:08.8]} 15...
d5 {[%clk 0:02:44.9]} 16. exd5 {[%clk 0:03:05.1]} 16... Rfe8 {[%clk 0:02:35.1]}
17. dxe6 {[%clk 0:03:03.5]} 17... Bd6 {[%clk 0:02:28.9]} 18. exf7+ {[%clk
0:02:45.9]} 18... Kxf7 {[%clk 0:02:30.8]} 19. Ng5+ {[%clk 0:02:41.7]} 19... Kg6
{[%clk 0:02:31.7]} 20. Ne6 {[%clk 0:02:35.2]} 20... Qb8 {[%clk 0:02:24.6]} 21.
Bxb7 {[%clk 0:02:27.7]} 21... Qxb7 {[%clk 0:02:24.6]} 22. Qf3 {[%clk 0:02:23.5]}
22... Qxf3 {[%clk 0:02:01]} 23. Nxf3 {[%clk 0:02:23.3]} 23... h6 {[%clk
0:02:02.2]} 24. d4 {[%clk 0:02:18.9]} 24... cxd4 {[%clk 0:01:59.7]} 25. Nexd4
{[%clk 0:02:07.4]} 25... Nc5 {[%clk 0:01:56.3]} 26. Rad1 {[%clk 0:02:01.2]}
26... Kf7 {[%clk 0:01:42.8]} 27. Nf5 {[%clk 0:01:52.4]} 27... Bb8 {[%clk
0:01:39.7]} 28. N3d4 {[%clk 0:01:38]} 28... g6 {[%clk 0:01:04.5]} 29. Ne3 {[%clk
0:01:26.7]} 29... Nfe4 {[%clk 0:00:51.6]} 30. Nd5 {[%clk 0:01:20.5]} 30... g5
{[%clk 0:00:28.6]} 31. Re3 {[%clk 0:01:07.3]} 31... g4 {[%clk 0:00:20.2]} 32.
Nf5 {[%clk 0:01:04.3]} 32... Kg6 {[%clk 0:00:14.6]} 33. Nfe7+ {[%clk 0:01:04.3]}
33... Kg5 {[%clk 0:00:14.4]} 34. Nxc8 {[%clk 0:01:04.2]} 34... Rxc8 {[%clk
0:00:16.3]} 35. Bd4 {[%clk 0:01:01.4]} 35... Bd6 {[%clk 0:00:11.7]} 36. Rde1
{[%clk 0:00:51.8]} 36... Rf8 {[%clk 0:00:10.5]} 37. Rxe4 {[%clk 0:00:51.5]}
37... Nxe4 {[%clk 0:00:11.2]} 38. Rxe4 {[%clk 0:00:52.7]} 1-0

[Event "*** Titled Tuesday 3|2 Blitz"]
[Site "Chess.com"]
[Date "2016.05.03"]
[Round "4"]
[White "arna"]
[Black "chorejason"]
[Result "1-0"]
[WhiteElo "2148"]
[BlackElo "2063"]
[TimeControl "180+2"]
[EndTime "11:49:51 PDT"]
[Termination "arna won by resignation"]

1. e4 {[%clk 0:02:56.8]} 1... c5 {[%clk 0:03:00.3]} 2. Nf3 {[%clk 0:02:57.2]}
2... d6 {[%clk 0:03:01.6]} 3. Bb5+ {[%clk 0:02:57.8]} 3... Bd7 {[%clk
0:02:58.6]} 4. Bxd7+ {[%clk 0:02:57.7]} 4... Qxd7 {[%clk 0:03:00.1]} 5. O-O
{[%clk 0:02:59.1]} 5... Nc6 {[%clk 0:03:01.5]} 6. c3 {[%clk 0:03:00.1]} 6... Nf6
{[%clk 0:03:02.9]} 7. d4 {[%clk 0:03:00.5]} 7... Nxe4 {[%clk 0:02:38.8]} 8. d5
{[%clk 0:03:00.1]} 8... Nd8 {[%clk 0:02:19]} 9. Re1 {[%clk 0:02:57.6]} 9... Nf6
{[%clk 0:02:16]} 10. c4 {[%clk 0:02:56]} 10... g6 {[%clk 0:02:11.2]} 11. Nc3
{[%clk 0:02:41.9]} 11... Bg7 {[%clk 0:02:12.1]} 12. Qe2 {[%clk 0:02:29.9]} 12...
e5 {[%clk 0:02:10.9]} 13. dxe6 {[%clk 0:02:26.1]} 13... Nxe6 {[%clk 0:02:12.4]}
14. Ng5 {[%clk 0:01:40.3]} 14... O-O {[%clk 0:02:13.1]} 15. Nxe6 {[%clk
0:01:29.7]} 15... fxe6 {[%clk 0:02:15]} 16. Qxe6+ {[%clk 0:01:27.6]} 16... Qxe6
{[%clk 0:02:05.6]} 17. Rxe6 {[%clk 0:01:29.5]} 17... Rae8 {[%clk 0:02:06.9]} 18.
Rxe8 {[%clk 0:01:26.6]} 18... Rxe8 {[%clk 0:02:08.1]} 19. Bf4 {[%clk 0:01:22.2]}
19... Re6 {[%clk 0:01:44]} 20. Rd1 {[%clk 0:00:59.1]} 20... Ne4 {[%clk
0:01:31.8]} 21. Nb5 {[%clk 0:00:43.4]} 21... g5 {[%clk 0:01:06]} 22. Bc1 {[%clk
0:00:38]} 22... a6 {[%clk 0:01:04.4]} 23. Nc7 {[%clk 0:00:37.5]} 23... Rg6
{[%clk 0:00:59.6]} 24. f3 {[%clk 0:00:24]} 24... Bd4+ {[%clk 0:00:35]} 25. Kf1
{[%clk 0:00:25.2]} 25... Nf6 {[%clk 0:00:26.9]} 26. Ne6 {[%clk 0:00:22.1]} 26...
Be5 {[%clk 0:00:23]} 27. Nxg5 {[%clk 0:00:21]} 27... h6 {[%clk 0:00:23.8]} 28.
Nh3 {[%clk 0:00:15.3]} 28... Bxh2 {[%clk 0:00:24.7]} 29. Bf4 {[%clk 0:00:14]}
29... Bxf4 {[%clk 0:00:22.9]} 30. Nxf4 {[%clk 0:00:15.9]} 30... Rg7 {[%clk
0:00:22.8]} 31. Rxd6 {[%clk 0:00:16.6]} 31... Nh5 {[%clk 0:00:23.6]} 32. Nxh5
{[%clk 0:00:16.7]} 32... Re7 {[%clk 0:00:24.8]} 33. Kf2 {[%clk 0:00:15.6]} 33...
Kh7 {[%clk 0:00:25.8]} 34. Nf6+ {[%clk 0:00:16.1]} 34... Kg7 {[%clk 0:00:25.3]}
35. Ne4 {[%clk 0:00:17.2]} 35... b6 {[%clk 0:00:25.7]} 36. Rxb6 {[%clk
0:00:17.6]} 36... Rd7 {[%clk 0:00:27.3]} 37. Ke2 {[%clk 0:00:14.7]} 37... Rd4
{[%clk 0:00:28.4]} 38. b3 {[%clk 0:00:16]} 38... h5 {[%clk 0:00:29.9]} 39. Rxa6
{[%clk 0:00:15.7]} 39... h4 {[%clk 0:00:30.8]} 40. Nxc5 {[%clk 0:00:15.7]} 40...
Rd6 {[%clk 0:00:28.3]} 41. Rxd6 {[%clk 0:00:15.2]} 1-0

[Event "*** Titled Tuesday 3|2 Blitz"]
[Site "Chess.com"]
[Date "2016.05.03"]
[Round "4"]
[White "sorito"]
[Black "charlescandycampbell"]
[Result "1-0"]
[WhiteElo "2201"]
[BlackElo "2046"]
[TimeControl "180+2"]
[EndTime "11:49:52 PDT"]
[Termination "sorito won by resignation"]

1. d4 {[%clk 0:03:01.9]} 1... Nf6 {[%clk 0:02:57.7]} 2. Nf3 {[%clk 0:03:03]}
2... e6 {[%clk 0:02:56.6]} 3. c4 {[%clk 0:03:03.5]} 3... d5 {[%clk 0:02:51.7]}
4. g3 {[%clk 0:03:04.3]} 4... c6 {[%clk 0:02:49.5]} 5. Bg2 {[%clk 0:03:04.9]}
5... Bd6 {[%clk 0:02:50.4]} 6. Qc2 {[%clk 0:03:05.5]} 6... O-O {[%clk
0:02:48.3]} 7. O-O {[%clk 0:03:06.7]} 7... Nbd7 {[%clk 0:02:49.2]} 8. b3 {[%clk
0:03:04.6]} 8... Qe7 {[%clk 0:02:48.3]} 9. Nc3 {[%clk 0:03:01.7]} 9... b6 {[%clk
0:02:34.7]} 10. e4 {[%clk 0:02:59.2]} 10... dxe4 {[%clk 0:02:32.7]} 11. Ng5
{[%clk 0:02:59.3]} 11... Bb7 {[%clk 0:02:27.3]} 12. Ncxe4 {[%clk 0:02:56.4]}
12... h6 {[%clk 0:02:15.4]} 13. Nxf6+ {[%clk 0:02:52.9]} 13... Nxf6 {[%clk
0:02:11.2]} 14. Ne4 {[%clk 0:02:42.3]} 14... Nxe4 {[%clk 0:02:10.9]} 15. Qxe4
{[%clk 0:02:40.6]} 15... f5 {[%clk 0:02:11.9]} 16. Qf3 {[%clk 0:02:36.5]} 16...
e5 {[%clk 0:02:12.6]} 17. dxe5 {[%clk 0:02:33.3]} 17... Bxe5 {[%clk 0:02:10.4]}
18. Re1 {[%clk 0:02:33.2]} 18... Qf6 {[%clk 0:02:09.2]} 19. Rb1 {[%clk
0:02:22.1]} 19... Rf7 {[%clk 0:02:04.9]} 20. Bf4 {[%clk 0:02:21.5]} 20... Bd4
{[%clk 0:01:59.8]} 21. Qh5 {[%clk 0:01:54.8]} 21... c5 {[%clk 0:01:53.6]} 22.
Bxb7 {[%clk 0:01:54.2]} 22... Rxb7 {[%clk 0:01:54.5]} 23. Re8+ {[%clk
0:01:55.8]} 23... Rxe8 {[%clk 0:01:55]} 24. Qxe8+ {[%clk 0:01:57.7]} 24... Kh7
{[%clk 0:01:56.1]} 25. Re1 {[%clk 0:01:59.2]} 25... Qf7 {[%clk 0:01:46.3]} 26.
Qc6 {[%clk 0:01:54.6]} 26... Qd7 {[%clk 0:01:42.8]} 27. Qf3 {[%clk 0:01:50.9]}
27... Qf7 {[%clk 0:01:41.6]} 28. Bd2 {[%clk 0:01:43.7]} 28... Rd7 {[%clk
0:01:42.3]} 29. Re2 {[%clk 0:01:42.1]} 29... g6 {[%clk 0:01:39.6]} 30. h4 {[%clk
0:01:43]} 30... Re7 {[%clk 0:01:38.5]} 31. h5 {[%clk 0:01:41.9]} 31... Rxe2
{[%clk 0:01:36.1]} 32. Qxe2 {[%clk 0:01:39.9]} 32... g5 {[%clk 0:01:34.9]} 33.
Kg2 {[%clk 0:01:36.4]} 33... Qb7+ {[%clk 0:01:33.9]} 34. Kh2 {[%clk 0:01:37.1]}
34... Qe4 {[%clk 0:01:25.8]} 35. Qxe4 {[%clk 0:01:37.8]} 35... fxe4 {[%clk
0:01:27]} 36. Kg2 {[%clk 0:01:34.4]} 36... Kg7 {[%clk 0:01:28.1]} 37. f3 {[%clk
0:01:30.9]} 37... exf3+ {[%clk 0:01:18.2]} 38. Kxf3 {[%clk 0:01:32.8]} 38... Kf6
{[%clk 0:01:19.2]} 39. Ke4 {[%clk 0:01:33.3]} 39... Ke6 {[%clk 0:01:20.2]} 40.
g4 {[%clk 0:01:34.2]} 40... Bf6 {[%clk 0:01:18.9]} 41. Be3 {[%clk 0:01:34.6]}
41... Bc3 {[%clk 0:01:09.7]} 42. a4 {[%clk 0:01:35]} 42... Be5 {[%clk
0:01:05.2]} 43. Bf2 {[%clk 0:01:36.2]} 43... Bf4 {[%clk 0:01:03.3]} 44. Be1
{[%clk 0:01:35.6]} 44... Be5 {[%clk 0:01:02.8]} 45. a5 {[%clk 0:01:36.6]} 45...
Bd4 {[%clk 0:01:02.2]} 46. axb6 {[%clk 0:01:31.6]} 46... axb6 {[%clk 0:01:02.2]}
47. Bg3 {[%clk 0:01:33.3]} 47... Bc3 {[%clk 0:00:57.2]} 48. Bc7 {[%clk
0:01:30.5]} 48... Ba5 {[%clk 0:00:58.2]} 49. Be5 {[%clk 0:01:32.2]} 49... Bd2
{[%clk 0:00:45.7]} 50. Bg7 {[%clk 0:01:28.7]} 50... Kf7 {[%clk 0:00:47]} 51.
Bxh6 {[%clk 0:01:26.6]} 51... Bf4 {[%clk 0:00:46.4]} 52. Kf5 {[%clk 0:01:27.2]}
52... Be3 {[%clk 0:00:45.2]} 53. Bxg5 {[%clk 0:01:28.5]} 53... Bd4 {[%clk
0:00:45.8]} 54. Bf4 {[%clk 0:01:29.5]} 54... Bc3 {[%clk 0:00:46.8]} 55. g5
{[%clk 0:01:31.1]} 55... Bb4 {[%clk 0:00:48]} 56. Be5 {[%clk 0:01:32.7]} 56...
Bd2 {[%clk 0:00:48]} 57. g6+ {[%clk 0:01:34.6]} 57... Kg8 {[%clk 0:00:49.1]} 58.
Ke6 {[%clk 0:01:36.2]} 58... Be3 {[%clk 0:00:48.5]} 59. Kd7 {[%clk 0:01:36.7]}
59... Bd2 {[%clk 0:00:49.6]} 60. Kc6 {[%clk 0:01:38.1]} 60... Ba5 {[%clk
0:00:50.7]} 61. h6 {[%clk 0:01:39.7]} 61... Bd2 {[%clk 0:00:47.4]} 62. h7+
{[%clk 0:01:40.9]} 62... Kf8 {[%clk 0:00:48.9]} 1-0

[Event "*** Titled Tuesday 3|2 Blitz"]
[Site "Chess.com"]
[Date "2016.05.03"]
[Round "4"]
[White "chesstatour"]
[Black "eugeniusjr"]
[Result "0-1"]
[WhiteElo "2022"]
[BlackElo "1892"]
[TimeControl "180+2"]
[EndTime "11:49:57 PDT"]
[Termination "eugeniusjr won on time"]

1. c4 {[%clk 0:03:01.9]} 1... Nf6 {[%clk 0:02:59.5]} 2. Nc3 {[%clk 0:03:02.2]}
2... d5 {[%clk 0:03:00.9]} 3. cxd5 {[%clk 0:03:02.2]} 3... Nxd5 {[%clk
0:03:02.8]} 4. e4 {[%clk 0:03:03.8]} 4... Nb6 {[%clk 0:02:53.1]} 5. d4 {[%clk
0:03:03.3]} 5... g6 {[%clk 0:02:54.5]} 6. Nf3 {[%clk 0:02:51.3]} 6... Bg7 {[%clk
0:02:55.7]} 7. Be3 {[%clk 0:02:49.3]} 7... O-O {[%clk 0:02:55.8]} 8. Be2 {[%clk
0:02:49.5]} 8... Nc6 {[%clk 0:02:56.8]} 9. O-O {[%clk 0:02:47.6]} 9... Bg4
{[%clk 0:02:58.1]} 10. d5 {[%clk 0:02:45.8]} 10... Bxf3 {[%clk 0:02:45.7]} 11.
Bxf3 {[%clk 0:02:39.5]} 11... Ne5 {[%clk 0:02:46.9]} 12. Be2 {[%clk 0:02:38.9]}
12... c6 {[%clk 0:02:29.7]} 13. Rc1 {[%clk 0:02:23.9]} 13... Nec4 {[%clk
0:02:17.9]} 14. Bxb6 {[%clk 0:02:04.5]} 14... Nxb6 {[%clk 0:02:15.8]} 15. dxc6
{[%clk 0:02:00.7]} 15... bxc6 {[%clk 0:02:17.7]} 16. Ba6 {[%clk 0:01:36.7]}
16... Rb8 {[%clk 0:02:10.7]} 17. b3 {[%clk 0:01:34.8]} 17... Bd4 {[%clk
0:01:50.1]} 18. Ne2 {[%clk 0:01:26.9]} 18... c5 {[%clk 0:01:49.6]} 19. Nxd4
{[%clk 0:01:26.8]} 19... cxd4 {[%clk 0:01:51.5]} 20. Qd3 {[%clk 0:01:15.6]}
20... e5 {[%clk 0:01:46.1]} 21. f4 {[%clk 0:01:14.3]} 21... Nd7 {[%clk
0:01:36.3]} 22. f5 {[%clk 0:00:50.2]} 22... Rb6 {[%clk 0:01:12.6]} 23. Bc4
{[%clk 0:00:42.8]} 23... Kg7 {[%clk 0:01:08.5]} 24. Rc2 {[%clk 0:00:21.2]} 24...
Nc5 {[%clk 0:01:05.7]} 25. Qf3 {[%clk 0:00:19.7]} 25... d3 {[%clk 0:00:56.8]}
26. Rd2 {[%clk 0:00:20.1]} 26... Qd4+ {[%clk 0:00:55.9]} 27. Kh1 {[%clk
0:00:17.1]} 27... Qxe4 {[%clk 0:00:45.2]} 28. Qxe4 {[%clk 0:00:11.6]} 28... Nxe4
{[%clk 0:00:47.1]} 29. Rxd3 {[%clk 0:00:11.9]} 29... gxf5 {[%clk 0:00:39.7]} 30.
Rxf5 {[%clk 0:00:11.8]} 30... Rf6 {[%clk 0:00:41.2]} 31. Rxf6 {[%clk 0:00:10.6]}
31... Kxf6 {[%clk 0:00:42.8]} 32. Rd7 {[%clk 0:00:10.6]} 32... a5 {[%clk
0:00:25]} 33. Ra7 {[%clk 0:00:11]} 33... Kf5 {[%clk 0:00:18.9]} 34. Bd3 {[%clk
0:00:06.8]} 34... Kf4 {[%clk 0:00:18.8]} 35. Bxe4 {[%clk 0:00:07.4]} 35... Kxe4
{[%clk 0:00:20]} 36. Rxa5 {[%clk 0:00:08.5]} 36... Rd8 {[%clk 0:00:15.9]} 37.
Kg1 {[%clk 0:00:07.2]} 37... Rd2 {[%clk 0:00:14.7]} 38. Kf1 {[%clk 0:00:05.7]}
38... Rb2 {[%clk 0:00:14.8]} 39. h3 {[%clk 0:00:05.5]} 39... f5 {[%clk
0:00:15.2]} 0-1